[Event "Goteborg Open 2024"]
[Site "Goteborgs Schackcentrum, Vegatan 20, Gothenburg, Sweden"]
[Date "2024.08.02"]
[Round "2.16"]
[White "Johansson, Eva"]
[Black "Madevan Vaishnavi, Yaashvan"]
[Result "0-1"]
[TimeControl "15 minutes + 5 seconds per move from move one (Round 1 - 4) / 90 minutes + 30 seconds per move from move one (Round 5 - 8)"]
[WhiteFideId "1724584"]
[BlackFideId "1772180"]
[WhiteElo "1878"]
[BlackElo "1684"]

1. d4 {[%clk 00:15:09]} Nf6 {[%clk 00:15:08]} {[%emt 00:00:02]} 2. c4 {[%clk
00:15:11]} {[%emt 00:00:03]} g6 {[%clk 00:15:12]} {[%emt 00:00:02]} 3. Nf3
{[%clk 00:15:13]} {[%emt 00:00:02]} Bg7 {[%clk 00:15:02]} {[%emt 00:00:14]} 4.
g3 {[%clk 00:15:13]} {[%emt 00:00:06]} c6 {[%clk 00:15:00]} {[%emt 00:00:07]} 5.
Bg2 {[%clk 00:15:10]} {[%emt 00:00:07]} d5 {[%clk 00:15:03]} {[%emt 00:00:03]}
6. O-O {[%clk 00:14:38]} {[%emt 00:00:36]} O-O {[%clk 00:15:05]} {[%emt
00:00:04]} 7. h3 {[%clk 00:14:02]} {[%emt 00:00:40]} dxc4 {[%clk 00:13:12]}
{[%emt 00:01:59]} 8. Ne5 {[%clk 00:13:58]} {[%emt 00:00:08]} Be6 {[%clk
00:13:04]} {[%emt 00:00:13]} 9. Na3 {[%clk 00:13:40]} {[%emt 00:00:23]} Bd5
{[%clk 00:12:47]} {[%emt 00:00:23]} 10. Naxc4 {[%clk 00:12:48]} {[%emt
00:00:57]} Bxg2 {[%clk 00:12:45]} {[%emt 00:00:07]} 11. Kxg2 {[%clk 00:12:50]}
{[%emt 00:00:02]} Nbd7 {[%clk 00:12:23]} {[%emt 00:00:27]} 12. Nf3 {[%clk
00:12:24]} {[%emt 00:00:31]} Nb6 {[%clk 00:12:11]} {[%emt 00:00:18]} 13. Nce5
{[%clk 00:12:04]} {[%emt 00:00:25]} Qd5 {[%clk 00:11:54]} {[%emt 00:00:22]} 14.
Qc2 {[%clk 00:11:17]} {[%emt 00:00:51]} Rac8 {[%clk 00:11:30]} {[%emt
00:00:30]} 15. Rd1 {[%clk 00:10:19]} {[%emt 00:01:02]} Rfd8 {[%clk 00:10:58]}
{[%emt 00:00:37]} 16. b3 {[%clk 00:09:49]} {[%emt 00:00:36]} c5 {[%clk
00:10:47]} {[%emt 00:00:16]} 17. Qd2 {[%clk 00:08:56]} {[%emt 00:00:57]} cxd4
{[%clk 00:10:05]} {[%emt 00:00:48]} 18. Qxd4 {[%clk 00:08:31]} {[%emt
00:00:30]} Qxd4 {[%clk 00:10:03]} {[%emt 00:00:06]} 19. Rxd4 {[%clk 00:08:16]}
{[%emt 00:00:20]} Rxd4 {[%clk 00:10:05]} {[%emt 00:00:03]} 20. Nxd4 {[%clk
00:08:19]} {[%emt 00:00:03]} Ne4 {[%clk 00:09:16]} {[%emt 00:00:53]} 21. Nef3
{[%clk 00:07:52]} {[%emt 00:00:33]} e5 {[%clk 00:09:04]} {[%emt 00:00:17]} 22.
Nb5 {[%clk 00:07:11]} {[%emt 00:00:40]} a6 {[%clk 00:09:06]} {[%emt 00:00:09]}
23. Na3 {[%clk 00:07:08]} {[%emt 00:00:01]} Nc3 {[%clk 00:09:08]} {[%emt
00:00:10]} 24. Ng1 {[%clk 00:06:16]} {[%emt 00:00:57]} e4 {[%clk 00:08:33]}
{[%emt 00:00:40]} 25. Be3 {[%clk 00:05:52]} {[%emt 00:00:28]} Nbd5 {[%clk
00:08:05]} {[%emt 00:00:34]} 26. Rc1 {[%clk 00:04:35]} {[%emt 00:01:22]} Nxe3+
{[%clk 00:07:49]} {[%emt 00:00:21]} 27. fxe3 {[%clk 00:04:39]} {[%emt
00:00:01]} Rd8 {[%clk 00:07:49]} {[%emt 00:00:05]} 28. Rc2 {[%clk 00:04:20]}
{[%emt 00:00:22]} Nd5 {[%clk 00:06:53]} {[%emt 00:01:02]} 29. Kf2 {[%clk
00:03:58]} {[%emt 00:00:28]} Bh6 {[%clk 00:06:45]} {[%emt 00:00:12]} 30. Nc4
{[%clk 00:03:19]} {[%emt 00:00:45]} b5 {[%clk 00:06:43]} {[%emt 00:00:06]} 31.
Na5 {[%clk 00:03:10]} {[%emt 00:00:11]} Bxe3+ {[%clk 00:06:33]} {[%emt
00:00:18]} 32. Kg2 {[%clk 00:03:14]} Bb6 {[%clk 00:06:34]} {[%emt 00:00:06]} 33.
Nb7 {[%clk 00:02:58]} {[%emt 00:00:20]} Ne3+ {[%clk 00:06:37]} {[%emt
00:00:03]} 34. Kh2 {[%clk 00:03:02]} {[%emt 00:00:01]} Nxc2 {[%clk 00:06:40]}
{[%emt 00:00:02]} 35. Nxd8 {[%clk 00:03:05]} {[%emt 00:00:01]} Bxd8 {[%clk
00:06:43]} {[%emt 00:00:02]} 0-1

[Event "Goteborg Open 2024"]
[Site "Goteborgs Schackcentrum, Vegatan 20, Gothenburg, Sweden"]
[Date "2024.08.02"]
[Round "2.17"]
[White "Lifmark, Kaspar"]
[Black "Torres, Lucas"]
[Result "0-1"]
[TimeControl "15 minutes + 5 seconds per move from move one (Round 1 - 4) / 90 minutes + 30 seconds per move from move one (Round 5 - 8)"]
[WhiteFideId "1742396"]
[BlackFideId "1769464"]
[WhiteElo "1672"]
[BlackElo "1861"]

1. e4 {[%clk 00:15:08]} {[%emt 00:00:02]} e6 {[%clk 00:15:10]} 2. d4 {[%clk
00:15:11]} {[%emt 00:00:03]} d5 {[%clk 00:15:14]} 3. e5 {[%clk 00:15:14]}
{[%emt 00:00:03]} c5 {[%clk 00:15:18]} 4. c3 {[%clk 00:15:17]} {[%emt
00:00:02]} Nc6 {[%clk 00:15:22]} {[%emt 00:00:01]} 5. Nf3 {[%clk 00:15:17]}
{[%emt 00:00:05]} Qb6 {[%clk 00:15:27]} 6. a3 {[%clk 00:15:20]} {[%emt
00:00:03]} c4 {[%clk 00:15:30]} {[%emt 00:00:01]} 7. Be2 {[%clk 00:14:55]}
{[%emt 00:00:31]} Na5 {[%clk 00:15:33]} {[%emt 00:00:02]} 8. Nbd2 {[%clk
00:14:36]} {[%emt 00:00:23]} Bd7 {[%clk 00:15:37]} {[%emt 00:00:01]} 9. O-O
{[%clk 00:14:20]} {[%emt 00:00:20]} Ne7 {[%clk 00:15:41]} {[%emt 00:00:02]} 10.
Rb1 {[%clk 00:12:14]} {[%emt 00:02:12]} Qc7 {[%clk 00:14:46]} {[%emt 00:00:59]}
11. Qe1 {[%clk 00:10:47]} {[%emt 00:01:32]} Ba4 {[%clk 00:14:35]} {[%emt
00:00:16]} 12. Bd1 {[%clk 00:10:03]} {[%emt 00:00:49]} Qd7 {[%clk 00:12:20]}
{[%emt 00:02:19]} 13. b3 {[%clk 00:09:23]} {[%emt 00:00:47]} Bxb3 {[%clk
00:11:29]} {[%emt 00:00:55]} 14. Nxb3 {[%clk 00:09:13]} {[%emt 00:00:15]} Nxb3
15. Bxb3 {[%clk 00:09:11]} cxb3 {[%clk 00:11:36]} 16. Rxb3 {[%clk 00:09:12]}
{[%emt 00:00:04]} Nc6 {[%clk 00:11:34]} {[%emt 00:00:06]} 17. Rb1 {[%clk
00:08:03]} {[%emt 00:01:14]} Na5 {[%clk 00:10:59]} {[%emt 00:00:41]} 18. Nd2
{[%clk 00:07:16]} {[%emt 00:00:52]} Rc8 {[%clk 00:10:08]} {[%emt 00:00:56]} 19.
Bb2 {[%clk 00:07:19]} {[%emt 00:00:02]} Be7 {[%clk 00:09:13]} {[%emt 00:01:00]}
20. Qe2 {[%clk 00:07:15]} {[%emt 00:00:08]} Nc4 {[%clk 00:08:59]} {[%emt
00:00:21]} 21. Nxc4 {[%clk 00:06:40]} {[%emt 00:00:39]} Rxc4 {[%clk 00:09:01]}
{[%emt 00:00:04]} 22. f4 {[%clk 00:05:35]} {[%emt 00:01:10]} b6 {[%clk
00:07:27]} {[%emt 00:01:39]} 23. Rf3 {[%clk 00:04:39]} {[%emt 00:01:01]} g6
{[%clk 00:05:31]} {[%emt 00:01:59]} 24. Qd1 {[%clk 00:03:43]} {[%emt 00:01:02]}
Qa4 {[%clk 00:05:04]} {[%emt 00:00:33]} 25. Qxa4+ {[%clk 00:03:05]} {[%emt
00:00:43]} Rxa4 {[%clk 00:05:07]} {[%emt 00:00:01]} 26. Ra1 {[%clk 00:03:09]}
{[%emt 00:00:01]} Kd7 {[%clk 00:05:00]} {[%emt 00:00:13]} 27. Kf2 {[%clk
00:03:08]} {[%emt 00:00:05]} Rc8 {[%clk 00:04:38]} {[%emt 00:00:26]} 28. Ke2
{[%clk 00:03:09]} {[%emt 00:00:05]} b5 {[%clk 00:04:28]} {[%emt 00:00:15]} 29.
g4 {[%clk 00:02:30]} {[%emt 00:00:44]} f5 {[%clk 00:01:09]} {[%emt 00:03:24]}
30. gxf5 {[%clk 00:01:18]} {[%emt 00:01:17]} exf5 {[%clk 00:01:07]} {[%emt
00:00:07]} 31. Rff1 {[%clk 00:00:55]} {[%emt 00:00:28]} Rc6 {[%clk 00:00:55]}
{[%emt 00:00:17]} 32. Kd3 {[%clk 00:00:47]} {[%emt 00:00:14]} Rca6 {[%clk
00:00:42]} {[%emt 00:00:17]} 33. Rfb1 {[%clk 00:00:24]} {[%emt 00:00:28]} Kc6
{[%clk 00:00:22]} {[%emt 00:00:24]} 34. e6 {[%clk 00:00:13]} {[%emt 00:00:18]}
Kc7 {[%clk 00:00:12]} {[%emt 00:00:14]} 35. Re1 {[%clk 00:00:09]} {[%emt
00:00:09]} Kd8 {[%clk 00:00:12]} {[%emt 00:00:05]} 36. Ra2 {[%clk 00:00:12]}
{[%emt 00:00:02]} Ke8 {[%clk 00:00:14]} {[%emt 00:00:03]} 37. Bc1 {[%clk
00:00:06]} {[%emt 00:00:12]} Bxa3 {[%clk 00:00:16]} {[%emt 00:00:03]} 38. Bxa3
{[%clk 00:00:08]} {[%emt 00:00:03]} Rxa3 39. Rxa3 {[%clk 00:00:12]} Rxa3 {[%clk
00:00:24]} 40. Kc2 {[%clk 00:00:14]} {[%emt 00:00:02]} Ra2+ {[%clk 00:00:28]}
{[%emt 00:00:02]} 41. Kb3 {[%clk 00:00:17]} {[%emt 00:00:01]} Rxh2 {[%clk
00:00:31]} {[%emt 00:00:02]} 42. Kb4 {[%clk 00:00:21]} {[%emt 00:00:01]} Rb2+
{[%clk 00:00:32]} {[%emt 00:00:04]} 43. Kc5 {[%clk 00:00:25]} {[%emt 00:00:01]}
a5 {[%clk 00:00:34]} {[%emt 00:00:03]} 44. Kxd5 {[%clk 00:00:24]} {[%emt
00:00:05]} a4 {[%clk 00:00:36]} {[%emt 00:00:03]} 45. Kc5 {[%clk 00:00:25]}
{[%emt 00:00:04]} a3 {[%clk 00:00:38]} {[%emt 00:00:04]} 46. Ra1 {[%clk
00:00:26]} {[%emt 00:00:03]} a2 {[%clk 00:00:41]} {[%emt 00:00:03]} 47. d5
{[%clk 00:00:30]} {[%emt 00:00:01]} h5 {[%clk 00:00:10]} {[%emt 00:00:35]} 48.
Kc6 {[%clk 00:00:31]} {[%emt 00:00:04]} Rc2 {[%clk 00:00:09]} {[%emt 00:00:06]}
49. Kxb5 {[%clk 00:00:21]} {[%emt 00:00:15]} Ke7 {[%clk 00:00:09]} {[%emt
00:00:05]} 50. c4 {[%clk 00:00:20]} {[%emt 00:00:07]} h4 {[%clk 00:00:12]}
{[%emt 00:00:01]} 51. Kc6 {[%clk 00:00:23]} {[%emt 00:00:03]} Rxc4+ {[%clk
00:00:15]} {[%emt 00:00:02]} 52. Kb5 {[%clk 00:00:26]} {[%emt 00:00:02]} Rc2
{[%clk 00:00:18]} 53. Rh1 {[%clk 00:00:21]} {[%emt 00:00:10]} Rb2+ {[%clk
00:00:21]} {[%emt 00:00:02]} 54. Kc6 {[%clk 00:00:20]} {[%emt 00:00:05]} Rb1
{[%clk 00:00:25]} 0-1

[Event "Goteborg Open 2024"]
[Site "Goteborgs Schackcentrum, Vegatan 20, Gothenburg, Sweden"]
[Date "2024.08.02"]
[Round "2.18"]
[White "Evertsson, David"]
[Black "Saleh, Saqr"]
[Result "1/2-1/2"]
[TimeControl "15 minutes + 5 seconds per move from move one (Round 1 - 4) / 90 minutes + 30 seconds per move from move one (Round 5 - 8)"]
[WhiteFideId "1777424"]
[BlackFideId "1785877"]
[WhiteElo "1642"]
[BlackElo "1835"]

1. e4 {[%clk 00:15:09]} {[%emt 00:00:02]} e6 {[%clk 00:15:08]} {[%emt
00:00:02]} 2. d4 {[%clk 00:15:11]} {[%emt 00:00:02]} d5 {[%clk 00:15:12]}
{[%emt 00:00:02]} 3. Nd2 {[%clk 00:15:13]} {[%emt 00:00:02]} Nf6 {[%clk
00:15:15]} {[%emt 00:00:02]} 4. e5 {[%clk 00:15:16]} {[%emt 00:00:01]} Nfd7
{[%clk 00:15:18]} {[%emt 00:00:02]} 5. Ngf3 {[%clk 00:15:13]} {[%emt 00:00:08]}
c5 {[%clk 00:15:21]} {[%emt 00:00:02]} 6. c3 {[%clk 00:15:15]} {[%emt
00:00:03]} Nc6 {[%clk 00:15:20]} {[%emt 00:00:06]} 7. Bd3 {[%clk 00:15:09]}
{[%emt 00:00:11]} Qb6 {[%clk 00:14:45]} {[%emt 00:00:41]} 8. O-O {[%clk
00:15:01]} {[%emt 00:00:12]} cxd4 {[%clk 00:14:42]} {[%emt 00:00:09]} 9. cxd4
{[%clk 00:15:03]} {[%emt 00:00:01]} Nxd4 {[%clk 00:14:28]} {[%emt 00:00:21]} 10.
Nxd4 {[%clk 00:14:59]} {[%emt 00:00:08]} Qxd4 {[%clk 00:14:28]} {[%emt
00:00:05]} 11. Nf3 {[%clk 00:15:01]} {[%emt 00:00:03]} Qb6 {[%clk 00:13:33]}
{[%emt 00:01:00]} 12. Qa4 {[%clk 00:14:45]} {[%emt 00:00:21]} Be7 {[%clk
00:10:44]} {[%emt 00:02:55]} 13. Qg4 {[%clk 00:14:14]} {[%emt 00:00:34]} Kf8
{[%clk 00:08:03]} {[%emt 00:02:47]} 14. Re1 {[%clk 00:07:49]} {[%emt 00:06:30]}
h5 {[%clk 00:04:26]} {[%emt 00:03:42]} 15. Qf4 {[%clk 00:06:53]} {[%emt
00:01:01]} Qb4 {[%clk 00:03:21]} {[%emt 00:01:10]} 16. Qe3 {[%clk 00:03:02]}
{[%emt 00:03:56]} Bc5 {[%clk 00:01:53]} {[%emt 00:01:33]} 17. Qg5 {[%clk
00:02:59]} {[%emt 00:00:09]} Be7 {[%clk 00:01:37]} {[%emt 00:00:21]} 18. Qe3
{[%clk 00:02:59]} {[%emt 00:00:03]} Bc5 {[%clk 00:01:02]} {[%emt 00:00:42]}
1/2-1/2

[Event "Goteborg Open 2024"]
[Site "Goteborgs Schackcentrum, Vegatan 20, Gothenburg, Sweden"]
[Date "2024.08.02"]
[Round "2.19"]
[White "Gallardo, Guillermo"]
[Black "Ulmer, Maya Vissing"]
[Result "1-0"]
[TimeControl "15 minutes + 5 seconds per move from move one (Round 1 - 4) / 90 minutes + 30 seconds per move from move one (Round 5 - 8)"]
[WhiteFideId "1773488"]
[BlackFideId "1479997"]
[WhiteElo "1822"]
[BlackElo "1676"]

1. Nf3 {[%clk 00:15:07]} {[%emt 00:00:03]} d5 {[%clk 00:15:05]} {[%emt
00:00:06]} 2. g3 {[%clk 00:15:00]} {[%emt 00:00:11]} Nc6 {[%clk 00:15:02]}
{[%emt 00:00:09]} 3. Bg2 {[%clk 00:15:02]} {[%emt 00:00:03]} e5 {[%clk
00:15:03]} {[%emt 00:00:03]} 4. e3 {[%clk 00:14:44]} {[%emt 00:00:22]} Nf6
{[%clk 00:14:57]} {[%emt 00:00:12]} 5. h3 {[%clk 00:14:40]} {[%emt 00:00:09]}
Bc5 {[%clk 00:14:19]} {[%emt 00:00:43]} 6. c3 {[%clk 00:14:35]} {[%emt
00:00:10]} Bf5 {[%clk 00:13:40]} {[%emt 00:00:44]} 7. b4 {[%clk 00:13:36]}
{[%emt 00:01:04]} Bd6 {[%clk 00:12:30]} {[%emt 00:01:15]} 8. O-O {[%clk
00:13:11]} {[%emt 00:00:29]} O-O {[%clk 00:11:54]} {[%emt 00:00:42]} 9. d4
{[%clk 00:12:48]} {[%emt 00:00:27]} e4 {[%clk 00:09:58]} {[%emt 00:02:02]} 10.
Ne1 {[%clk 00:11:15]} {[%emt 00:01:37]} Qd7 {[%clk 00:09:05]} {[%emt 00:00:59]}
11. Kh2 {[%clk 00:10:53]} {[%emt 00:00:27]} a5 {[%clk 00:08:05]} {[%emt
00:01:04]} 12. b5 {[%clk 00:10:43]} {[%emt 00:00:16]} Na7 {[%clk 00:08:04]}
{[%emt 00:00:06]} 13. a4 {[%clk 00:10:45]} {[%emt 00:00:03]} Nc8 {[%clk
00:06:53]} {[%emt 00:01:15]} 14. Ba3 {[%clk 00:10:32]} {[%emt 00:00:18]} Nb6
{[%clk 00:06:16]} {[%emt 00:00:43]} 15. Bxd6 {[%clk 00:10:23]} {[%emt
00:00:14]} Qxd6 {[%clk 00:06:17]} {[%emt 00:00:04]} 16. Nd2 {[%clk 00:09:49]}
{[%emt 00:00:39]} Rac8 {[%clk 00:05:12]} {[%emt 00:01:10]} 17. Rc1 {[%clk
00:09:22]} {[%emt 00:00:32]} c6 {[%clk 00:04:48]} {[%emt 00:00:30]} 18. Qb3
{[%clk 00:07:39]} {[%emt 00:01:48]} c5 {[%clk 00:02:01]} {[%emt 00:02:51]} 19.
Nc2 {[%clk 00:05:09]} {[%emt 00:02:34]} c4 {[%clk 00:01:26]} {[%emt 00:00:41]}
20. Qa2 {[%clk 00:05:02]} {[%emt 00:00:11]} Rfe8 {[%clk 00:01:02]} {[%emt
00:00:30]} 21. Rce1 {[%clk 00:04:21]} {[%emt 00:00:46]} h5 {[%clk 00:00:21]}
{[%emt 00:00:47]} 22. f4 {[%clk 00:04:08]} {[%emt 00:00:17]} Bd7 {[%clk
00:00:10]} {[%emt 00:00:15]} 23. Rf2 {[%clk 00:03:49]} {[%emt 00:00:25]} Nh7
{[%clk 00:00:12]} {[%emt 00:00:03]} 24. Ref1 {[%clk 00:02:39]} {[%emt
00:01:14]} Nf6 {[%clk 00:00:15]} {[%emt 00:00:03]} 25. Qa1 {[%clk 00:02:15]}
{[%emt 00:00:29]} Kh7 {[%clk 00:00:11]} {[%emt 00:00:09]} 26. Qd1 {[%clk
00:02:16]} {[%emt 00:00:05]} g6 {[%clk 00:00:13]} {[%emt 00:00:02]} 27. Ne1
{[%clk 00:02:01]} {[%emt 00:00:20]} Qa3 {[%clk 00:00:14]} {[%emt 00:00:04]} 28.
f5 {[%clk 00:01:32]} {[%emt 00:00:33]} Bxf5 {[%clk 00:00:14]} {[%emt 00:00:06]}
29. Rxf5 {[%clk 00:01:28]} {[%emt 00:00:08]} gxf5 {[%clk 00:00:17]} {[%emt
00:00:03]} 30. Rxf5 {[%clk 00:01:28]} {[%emt 00:00:05]} Kg6 {[%clk 00:00:20]}
{[%emt 00:00:02]} 31. g4 {[%clk 00:00:55]} {[%emt 00:00:38]} hxg4 {[%clk
00:00:16]} {[%emt 00:00:09]} 32. hxg4 {[%clk 00:00:50]} {[%emt 00:00:09]} Rh8+
{[%clk 00:00:16]} {[%emt 00:00:06]} 33. Kg1 {[%clk 00:00:37]} {[%emt 00:00:18]}
Qxc3 {[%clk 00:00:06]} {[%emt 00:00:14]} 34. Qe2 {[%clk 00:00:35]} {[%emt
00:00:07]} Nxa4 {[%emt 00:00:05]} 35. Re5 {[%clk 00:00:20]} {[%emt 00:00:18]}
Qb4 {[%clk 00:00:12]} {[%emt 00:00:02]} 36. Qf2 {[%clk 00:00:15]} {[%emt
00:00:11]} Qd6 {[%clk 00:00:15]} 37. Qf5+ {[%clk 00:00:15]} {[%emt 00:00:05]}
Kg7 {[%clk 00:00:18]} {[%emt 00:00:01]} 38. g5 {[%clk 00:00:07]} {[%emt
00:00:14]} Nd7 {[%clk 00:00:10]} {[%emt 00:00:13]} 39. Rxd5 {[%clk 00:00:08]}
{[%emt 00:00:05]} Qb4 {[%clk 00:00:12]} {[%emt 00:00:02]} 40. Rxd7 {[%clk
00:00:10]} {[%emt 00:00:04]} Qxd2 {[%clk 00:00:15]} {[%emt 00:00:01]} 41. Qxf7#
{[%clk 00:00:09]} {[%emt 00:00:07]} 1-0

[Event "Goteborg Open 2024"]
[Site "Goteborgs Schackcentrum, Vegatan 20, Gothenburg, Sweden"]
[Date "2024.08.02"]
[Round "2.20"]
[White "Israelsson, Lukas"]
[Black "Shchetinin, Oleg"]
[Result "0-1"]
[TimeControl "15 minutes + 5 seconds per move from move one (Round 1 - 4) / 90 minutes + 30 seconds per move from move one (Round 5 - 8)"]
[WhiteFideId "1784749"]
[BlackFideId "1740210"]
[WhiteElo "1615"]
[BlackElo "1742"]

1. e4 {[%clk 00:15:07]} {[%emt 00:00:02]} Nf6 {[%clk 00:15:00]} {[%emt
00:00:11]} 2. e5 {[%clk 00:15:11]} {[%emt 00:00:01]} Nd5 {[%clk 00:15:03]}
{[%emt 00:00:02]} 3. d4 {[%clk 00:15:11]} {[%emt 00:00:05]} e6 {[%clk
00:14:55]} {[%emt 00:00:13]} 4. c4 {[%clk 00:15:13]} {[%emt 00:00:03]} Nb6
{[%clk 00:14:58]} {[%emt 00:00:02]} 5. f4 {[%clk 00:15:13]} {[%emt 00:00:04]}
d6 {[%clk 00:14:35]} {[%emt 00:00:28]} 6. Nf3 {[%clk 00:15:12]} {[%emt
00:00:06]} dxe5 {[%clk 00:13:24]} {[%emt 00:01:18]} 7. fxe5 {[%clk 00:15:12]}
{[%emt 00:00:04]} c5 {[%clk 00:13:11]} {[%emt 00:00:18]} 8. Bg5 {[%clk
00:14:13]} {[%emt 00:01:04]} Qd7 {[%clk 00:11:58]} {[%emt 00:01:18]} 9. Nc3
{[%clk 00:13:10]} {[%emt 00:01:08]} cxd4 {[%clk 00:11:57]} {[%emt 00:00:07]} 10.
Nxd4 {[%clk 00:12:51]} {[%emt 00:00:23]} Bc5 {[%clk 00:11:42]} {[%emt
00:00:18]} 11. Ndb5 {[%clk 00:12:42]} {[%emt 00:00:16]} Nc6 {[%clk 00:10:45]}
{[%emt 00:01:02]} 12. Nd6+ {[%clk 00:10:38]} {[%emt 00:02:09]} Bxd6 {[%clk
00:10:28]} {[%emt 00:00:22]} 13. exd6 {[%clk 00:10:23]} {[%emt 00:00:19]} O-O
{[%clk 00:07:35]} {[%emt 00:03:00]} 14. c5 {[%clk 00:10:14]} {[%emt 00:00:13]}
Nd5 {[%clk 00:07:36]} {[%emt 00:00:04]} 15. Nxd5 {[%clk 00:10:05]} {[%emt
00:00:14]} exd5 {[%clk 00:07:39]} {[%emt 00:00:03]} 16. Qxd5 {[%clk 00:09:55]}
{[%emt 00:00:14]} Nb4 {[%clk 00:07:19]} {[%emt 00:00:25]} 17. Qb3 {[%clk
00:09:20]} {[%emt 00:00:39]} Re8+ {[%clk 00:07:02]} {[%emt 00:00:24]} 18. Be7
{[%clk 00:08:48]} {[%emt 00:00:36]} Rxe7+ {[%emt 00:01:41]} 19. dxe7 {[%clk
00:08:39]} Qxe7+ {[%clk 00:05:42]} {[%emt 00:00:03]} 20. Be2 {[%clk 00:07:50]}
{[%emt 00:00:53]} Qxc5 {[%clk 00:04:11]} {[%emt 00:01:37]} 21. Rf1 {[%clk
00:06:00]} {[%emt 00:01:55]} Be6 {[%clk 00:03:49]} {[%emt 00:00:25]} 22. Qc3
{[%clk 00:05:05]} {[%emt 00:01:02]} Qxc3+ {[%clk 00:03:15]} {[%emt 00:00:39]}
23. bxc3 {[%emt 00:00:05]} Nc2+ {[%clk 00:03:17]} 24. Kd2 {[%clk 00:05:09]}
{[%emt 00:00:04]} Nxa1 {[%clk 00:03:20]} {[%emt 00:00:02]} 25. Rxa1 {[%emt
00:00:02]} Rd8+ {[%clk 00:03:17]} {[%emt 00:00:08]} 26. Ke1 {[%clk 00:04:52]}
{[%emt 00:00:25]} Kf8 {[%clk 00:03:16]} {[%emt 00:00:07]} 27. Rb1 {[%clk
00:04:29]} {[%emt 00:00:28]} b6 {[%clk 00:03:16]} {[%emt 00:00:05]} 28. Rb2
{[%clk 00:04:15]} {[%emt 00:00:18]} Rd5 {[%clk 00:03:09]} {[%emt 00:00:12]} 29.
Rd2 {[%clk 00:03:26]} {[%emt 00:00:54]} Rxd2 {[%clk 00:03:02]} {[%emt
00:00:12]} 30. Kxd2 {[%clk 00:03:29]} {[%emt 00:00:01]} Bxa2 {[%clk 00:03:06]}
{[%emt 00:00:03]} 31. c4 {[%clk 00:03:33]} {[%emt 00:00:01]} Bb1 {[%clk
00:02:58]} {[%emt 00:00:12]} 32. Kc3 {[%clk 00:03:34]} {[%emt 00:00:04]} Be4
{[%clk 00:03:00]} {[%emt 00:00:03]} 33. g3 {[%clk 00:03:26]} {[%emt 00:00:13]}
Ke7 {[%clk 00:03:04]} {[%emt 00:00:02]} 34. Kb4 {[%clk 00:03:27]} {[%emt
00:00:03]} Kd6 {[%clk 00:02:59]} {[%emt 00:00:10]} 35. Kb5 {[%clk 00:03:27]}
{[%emt 00:00:05]} Bb7 {[%clk 00:03:02]} {[%emt 00:00:03]} 36. Bd3 {[%clk
00:03:19]} {[%emt 00:00:12]} g6 {[%clk 00:02:57]} {[%emt 00:00:09]} 37. h4
{[%clk 00:03:20]} {[%emt 00:00:05]} Kc7 {[%clk 00:02:50]} {[%emt 00:00:12]} 38.
g4 {[%clk 00:03:05]} {[%emt 00:00:19]} a6+ {[%clk 00:02:54]} {[%emt 00:00:02]}
39. Kb4 {[%clk 00:03:08]} Bc6 {[%clk 00:02:46]} {[%emt 00:00:13]} 40. g5 {[%clk
00:02:53]} {[%emt 00:00:22]} a5+ {[%clk 00:02:50]} 41. Kc3 {[%clk 00:02:55]}
{[%emt 00:00:02]} Kd6 {[%clk 00:02:54]} {[%emt 00:00:01]} 42. Kd4 {[%clk
00:02:37]} {[%emt 00:00:23]} a4 {[%clk 00:02:38]} {[%emt 00:00:21]} 43. Bc2
{[%clk 00:02:21]} {[%emt 00:00:20]} a3 {[%emt 00:00:02]} 44. Bb3 {[%clk
00:02:25]} {[%emt 00:00:01]} Bd7 {[%clk 00:01:53]} {[%emt 00:00:55]} 45. Ba2
{[%clk 00:02:23]} {[%emt 00:00:07]} Be6 {[%clk 00:01:53]} {[%emt 00:00:04]} 46.
Kc3 {[%clk 00:02:06]} {[%emt 00:00:22]} Kc5 {[%clk 00:01:53]} {[%emt 00:00:06]}
47. Kd3 {[%clk 00:01:52]} {[%emt 00:00:18]} b5 {[%clk 00:01:55]} {[%emt
00:00:03]} 48. Kc3 {[%clk 00:01:28]} {[%emt 00:00:29]} Bxc4 {[%clk 00:01:52]}
{[%emt 00:00:08]} 49. Bb1 {[%clk 00:01:31]} {[%emt 00:00:02]} a2 {[%clk
00:01:43]} {[%emt 00:00:15]} 50. Bxa2 {[%clk 00:01:33]} {[%emt 00:00:02]} Bxa2
{[%clk 00:01:46]} {[%emt 00:00:02]} 51. Kb2 {[%clk 00:01:35]} {[%emt 00:00:02]}
Be6 {[%clk 00:01:49]} {[%emt 00:00:02]} 52. Kc3 {[%clk 00:01:39]} {[%emt
00:00:01]} b4+ {[%clk 00:01:53]} {[%emt 00:00:01]} 53. Kd2 {[%clk 00:01:42]}
{[%emt 00:00:02]} Kc4 {[%clk 00:01:55]} {[%emt 00:00:03]} 54. Kc2 {[%clk
00:01:45]} {[%emt 00:00:01]} b3+ {[%clk 00:01:57]} {[%emt 00:00:03]} 55. Kb2
{[%clk 00:01:49]} {[%emt 00:00:01]} Bf5 {[%clk 00:01:58]} {[%emt 00:00:04]} 56.
h5 {[%clk 00:01:49]} {[%emt 00:00:05]} gxh5 {[%clk 00:02:02]} {[%emt 00:00:01]}
57. g6 {[%clk 00:01:53]} fxg6 {[%clk 00:02:05]} {[%emt 00:00:03]} 58. Ka1
{[%clk 00:01:51]} {[%emt 00:00:05]} h4 {[%clk 00:02:05]} {[%emt 00:00:06]} 59.
Kb2 {[%clk 00:01:55]} {[%emt 00:00:01]} 0-1